fUSD/lending_fUSD_20250730
["ID","MTS","AMOUNT","RATE_DAILY","PERIOD"]
[376292402,1753919446640,-400.0,0.0001671,2]
[376292403,1753919446650,-400.0,0.0001671,2]
[376292404,1753919446659,-400.0,0.0001671,2]
[376292405,1753919446669,-403.91,0.0001671,2]
[376292406,1753919446678,-400.0,0.0001671,2]
[376292407,1753919446688,-2668.91,0.0001671,2]
[376292408,1753919446698,-1192.7,0.0001671,2]
[376292409,1753919446711,-400.0,0.0001671,2]
[376292410,1753919446721,-400.0,0.0001671,2]
[376292411,1753919446730,-400.0,0.0001671,2]
[376292412,1753919446740,-400.0,0.0001671,2]
[376292413,1753919446749,-400.0,0.0001671,2]
[376292414,1753919446759,-154.303225,0.0001671,2]
[376292415,1753919446769,-156.889482,0.0001671,2]
[376292416,1753919446778,-400.0,0.0001671,2]
[376292417,1753919446788,-734.38,0.0001671,2]
[376292418,1753919446798,-793.86,0.0001671,2]
[376292419,1753919446808,-400.0,0.0001671,2]
[376292420,1753919446817,-471.44,0.0001671,2]
[376292421,1753919446828,-400.0,0.0001671,2]
[376292422,1753919446837,-197.47,0.0001671,2]
[376292423,1753919446846,-400.0,0.0001671,2]
[376292424,1753919446856,-400.0,0.0001671,2]
[376292425,1753919446865,-1121.24,0.0001671,2]
[376292426,1753919446875,-159.549627,0.0001671,2]
[376292427,1753919446885,-454.92,0.0001671,2]
[376292428,1753919446894,-402.08,0.0001671,2]
[376292429,1753919446904,-400.0,0.0001671,2]
[376292430,1753919446913,-1531.75,0.0001671,2]
[376292431,1753919446922,-400.0,0.0001671,2]
[376292433,1753919446932,-648.16,0.0001671,2]
[376292435,1753919446941,-191.0102067,0.00016711,2]
[376292436,1753919446950,-627.84,0.00016712,2]
[376292437,1753919446960,-434.3694401,0.00016712,2]
[376292439,1753919446974,-534.62,0.00016712,2]
[376292440,1753919446983,-400.0,0.00016712,2]
[376292441,1753919446992,-450.47,0.00016712,2]
[376292442,1753919447002,-949.81,0.00016712,2]
[376292443,1753919447012,-1013.78,0.00016712,2]
[376292444,1753919447021,-449.08,0.00016712,2]
[376292445,1753919447031,-683.48,0.00016712,2]
[376292446,1753919447041,-577.58,0.00016712,2]
[376292447,1753919447050,-400.0,0.00016712,2]
[376292448,1753919447060,-400.0,0.00016712,2]
[376292449,1753919447069,-513.7,0.00016712,2]
[376292450,1753919447078,-400.0,0.00016712,2]
[376292451,1753919447088,-575.47,0.00016712,2]
[376292452,1753919447098,-400.0,0.00016712,2]
[376292453,1753919447107,-400.0,0.00016712,2]
[376292454,1753919447116,-400.0,0.00016712,2]
[376292455,1753919447126,-400.0,0.00016712,2]
[376292456,1753919447136,-521.24,0.00016712,2]
[376292457,1753919447145,-1173.22,0.00016712,2]
[376292458,1753919447155,-400.0,0.00016712,2]
[376292459,1753919447164,-2791.6,0.00016712,2]
[376292460,1753919447174,-725.55,0.00016712,2]
[376292461,1753919447183,-664.62,0.00016712,2]
[376292462,1753919447193,-698.46,0.00016712,2]
[376292463,1753919447203,-820.0,0.00016712,2]
[376292464,1753919447213,-1634.76,0.00016712,2]
[376292465,1753919447223,-663.19,0.00016712,2]
[376292466,1753919447232,-994.36,0.00016712,2]
[376292467,1753919447241,-1276.13,0.00016712,2]
[376292468,1753919447251,-540.94,0.00016712,2]
[376292469,1753919447474,-631.04,0.00016712,2]
[376292470,1753919447486,-1049.6,0.00016712,2]
[376292471,1753919447496,-1914.35,0.00016712,2]
[376292472,1753919447505,-1019.41,0.00016712,2]
[376292473,1753919447516,-400.0,0.00016712,2]
[376292474,1753919447526,-1000.0,0.00016712,2]
[376292475,1753919447535,-1227.29,0.00016712,2]
[376292476,1753919447545,-465.29,0.00016712,2]
[376292477,1753919447555,-766.33,0.00016712,2]
[376292478,1753919447565,-909.58,0.00016712,2]
[376292479,1753919447575,-564.75,0.00016712,2]
[376292480,1753919447584,-1013.77,0.00016712,2]
[376292481,1753919447594,-408.37,0.00016712,2]
[376292482,1753919447604,-1240.64,0.00016712,2]
[376292483,1753919447614,-1080.01,0.00016712,2]
[376292484,1753919447624,-535.82,0.00016712,2]
[376292485,1753919447633,-2635.22,0.00016712,2]
[376292486,1753919447643,-1283.4,0.00016712,2]
[376292487,1753919447653,-400.0,0.00016712,2]
[376292488,1753919447663,-409.61,0.00016712,2]
[376292489,1753919447672,-722.02,0.00016712,2]
[376292490,1753919447682,-400.0,0.00016712,2]
[376292491,1753919447692,-7407.141672,0.00016712,2]
[376292492,1753919447702,-346.92554585,0.00016712,2]
[376292493,1753919447711,-600.0,0.00016712,2]
[376292494,1753919447720,-231.28369723,0.00016712,2]
[376292495,1753919447730,-500.0,0.00016712,2]
[376292496,1753919447739,-300.0,0.000168,6]
[376292497,1753919447749,-191.0102067,0.00016812,2]
[376292498,1753919447758,-184.75,0.00016884,2]
[376292499,1753919447768,-249.0,0.00016889,2]
[376292500,1753919447778,-600.0,0.000169,6]
[376292501,1753919447788,-583.57223934,0.000169,2]
[376292502,1753919447798,-191.0102067,0.00016913,2]
[376292503,1753919447807,-2279.15591656,0.0001696,2]
[376292504,1753919447817,-838.72089111,0.00016965,2]
[376292505,1753919447827,-420.0,0.00016972,2]
[376292506,1753919447836,-400.0,0.00016983,2]
[376292507,1753919447845,-460.0,0.00016983,2]
[376292508,1753919447855,-810.69,0.00016983,2]
[376292509,1753919447864,-400.0,0.00016983,2]
[376292510,1753919447874,-663.79,0.00016983,2]
[376292511,1753919447884,-954.81,0.00016983,2]
[376292512,1753919447894,-400.0,0.00016983,2]
[376292513,1753919447904,-1469.56,0.00016983,2]
[376292514,1753919447914,-415.18,0.00016983,2]
[376292515,1753919447923,-400.0,0.00016983,2]
[376292516,1753919447933,-724.73,0.00016983,2]
[376292517,1753919447943,-708.94,0.00016983,2]
[376292518,1753919447953,-1152.05,0.00016983,2]
[376292519,1753919447965,-943.71,0.00016983,2]
[376292520,1753919447975,-719.91,0.00016983,2]
[376292521,1753919447984,-400.0,0.00016983,2]
[376292522,1753919447994,-531.31,0.00016983,2]
[376292523,1753919448003,-400.0,0.00016984,2]
[376292524,1753919448014,-203.04,0.00016984,2]
[376292525,1753919448023,-400.0,0.00016984,2]
[376292526,1753919448033,-400.0,0.00016984,2]
[376292527,1753919448043,-400.0,0.00016984,2]
[376292528,1753919448052,-400.0,0.00016984,2]
[376292529,1753919448062,-200.9976339,0.00016984,2]
[376292530,1753919448072,-400.0,0.00016984,2]
[376292531,1753919448082,-461.74,0.00016984,2]
[376292532,1753919448091,-400.0,0.00016984,2]
[376292533,1753919448101,-400.0,0.00016984,2]
[376292534,1753919448110,-400.0,0.00016984,2]
[376292535,1753919448120,-400.0,0.00016984,2]
[376292536,1753919448130,-581.74,0.00016984,2]
[376292537,1753919448139,-400.0,0.00016984,2]
[376292538,1753919448149,-400.0,0.00016984,2]
[376292539,1753919448158,-400.0,0.00016984,2]
[376292540,1753919448168,-798.08,0.00016984,2]
[376292541,1753919448178,-400.0,0.00016984,2]
[376292542,1753919448188,-468.37,0.00016984,2]
[376292543,1753919448197,-403.84,0.00016984,2]
[376292544,1753919448207,-472.55,0.00016984,2]
[376292545,1753919448216,-400.0,0.00016984,2]
[376292546,1753919448226,-400.0,0.00016984,2]
[376292547,1753919448236,-400.72,0.00016984,2]
[376292548,1753919448246,-400.0,0.00016984,2]
[376292549,1753919448255,-400.0,0.00016984,2]
[376292550,1753919448266,-551.21,0.00016984,2]
[376292551,1753919448275,-400.0,0.00016984,2]
[376292552,1753919448285,-400.0,0.00016984,2]
[376292553,1753919448295,-400.0,0.00016984,2]
[376292554,1753919448304,-420.01,0.00016984,2]
[376292555,1753919448314,-418.41,0.00016984,2]
[376292556,1753919448323,-400.0,0.00016984,2]
[376292557,1753919448333,-400.0,0.00016984,2]
[376292558,1753919448342,-400.0,0.00016984,2]
[376292559,1753919448352,-400.0,0.00016984,2]
[376292560,1753919448362,-400.0,0.00016984,2]
[376292561,1753919448371,-400.0,0.00016984,2]
[376292562,1753919448381,-400.0,0.00016984,2]
[376292563,1753919448391,-529.09,0.00016984,2]
[376292564,1753919448400,-2626.42,0.00016984,2]
[376292565,1753919448410,-400.0,0.00016984,2]
[376292566,1753919448419,-320.46,0.00016984,2]
[376292567,1753919448429,-400.0,0.00016984,2]
[376292568,1753919448439,-400.0,0.00016984,2]
[376292569,1753919448449,-438.65,0.00016984,2]
[376292570,1753919448458,-400.0,0.00016984,2]
[376292571,1753919448468,-410.05,0.00016984,2]
[376292572,1753919448477,-469.97,0.00016984,2]
[376292573,1753919448487,-400.0,0.00016984,2]
[376292574,1753919448497,-400.0,0.00016984,2]
[376292575,1753919448507,-400.0,0.00016984,2]
[376292576,1753919448516,-400.0,0.00016984,2]
[376292577,1753919448526,-400.0,0.00016984,2]
[376292578,1753919448536,-400.0,0.00016984,2]
[376292579,1753919448546,-415.4,0.00016984,2]
[376292580,1753919448556,-400.0,0.00016984,2]
[376292581,1753919448566,-400.0,0.00016984,2]
[376292582,1753919448576,-400.0,0.00016984,2]
[376292583,1753919448586,-373.2,0.00016984,2]
[376292584,1753919448596,-400.0,0.00016984,2]
[376292585,1753919448606,-475.09,0.00016984,2]
[376292586,1753919448616,-400.0,0.00016984,2]
[376292587,1753919448625,-400.0,0.00016984,2]
[376292588,1753919448635,-400.0,0.00016984,2]
[376292589,1753919448645,-400.0,0.00016984,2]
[376292590,1753919448655,-285.01217619,0.00016984,2]
[376292591,1753919448664,-505.88,0.00016984,2]
[376292592,1753919448674,-400.0,0.00016984,2]
[376292593,1753919448684,-400.0,0.00016984,2]
[376292594,1753919448694,-441.13,0.00016984,2]
[376292595,1753919448704,-400.0,0.00016984,2]
[376292596,1753919448713,-400.0,0.00016984,2]
[376292597,1753919448723,-400.0,0.00016984,2]
[376292598,1753919448732,-1584.5,0.00016984,2]
[376292599,1753919448742,-415.95,0.00016984,2]
[376292600,1753919448751,-400.0,0.00016984,2]
[376292601,1753919448761,-400.0,0.00016984,2]
[376292602,1753919448771,-470.83,0.00016984,2]
[376292603,1753919448780,-400.0,0.00016984,2]
[376292604,1753919448789,-400.0,0.00016984,2]
[376292605,1753919448799,-400.0,0.00016984,2]
[376292606,1753919448808,-400.0,0.00016984,2]
[376292607,1753919448818,-400.0,0.00016984,2]
[376292608,1753919448828,-400.0,0.00016984,2]
[376292609,1753919448838,-400.0,0.00016984,2]
[376292610,1753919448852,-249.59,0.00016984,2]
[376292611,1753919448861,-400.0,0.00016984,2]
[376292612,1753919448871,-400.0,0.00016984,2]
[376292613,1753919448881,-400.0,0.00016984,2]
[376292614,1753919448890,-400.0,0.00016984,2]
[376292615,1753919448900,-432.88,0.00016984,2]
[376292616,1753919448910,-400.0,0.00016984,2]
[376292617,1753919448919,-479.92,0.00016984,2]
[376292618,1753919448929,-400.0,0.00016984,2]
[376292619,1753919448938,-400.0,0.00016984,2]
[376292620,1753919448948,-400.0,0.00016984,2]
[376292621,1753919448957,-400.0,0.00016984,2]
[376292622,1753919448971,-400.0,0.00016984,2]
[376292623,1753919448981,-400.0,0.00016984,2]
[376292624,1753919448990,-732.57,0.00016984,2]
[376292625,1753919449000,-400.0,0.00016984,2]
[376292626,1753919449011,-400.0,0.00016984,2]
[376292627,1753919449020,-419.69,0.00016984,2]
[376292628,1753919449030,-405.18,0.00016984,2]
[376292629,1753919449040,-400.0,0.00016984,2]
[376292630,1753919449049,-446.4,0.00016984,2]
[376292631,1753919449059,-400.0,0.00016984,2]
[376292632,1753919449069,-400.0,0.00016984,2]
[376292633,1753919449079,-400.0,0.00016984,2]
[376292634,1753919449088,-400.0,0.00016984,2]
[376292635,1753919449098,-516.05,0.00016984,2]
[376292636,1753919449108,-439.05,0.00016984,2]
[376292637,1753919449118,-400.0,0.00016984,2]
[376292638,1753919449128,-400.0,0.00016984,2]
[376292639,1753919449138,-400.0,0.00016984,2]
[376292640,1753919449147,-400.0,0.00016984,2]
[376292641,1753919449157,-400.0,0.00016984,2]
[376292642,1753919449167,-400.0,0.00016984,2]
[376292643,1753919449177,-400.0,0.00016984,2]
[376292644,1753919449186,-400.0,0.00016984,2]
[376292645,1753919449196,-703.14,0.00016984,2]
[376292646,1753919449206,-300.45082175,0.00016984,2]
[376292647,1753919449216,-400.0,0.00016984,2]
[376292648,1753919449225,-477.68458296,0.00016984,2]
[376292649,1753919449235,-552.03,0.00016984,2]
[376292650,1753919449245,-400.0,0.00016984,2]
[376292651,1753919449254,-441.38,0.00016984,2]
[376292652,1753919449263,-466.25,0.00016984,2]
[376292653,1753919449272,-689.57,0.00016984,2]
[376292654,1753919449281,-400.0,0.00016984,2]
[376292655,1753919449290,-445.74,0.00016984,2]
[376292656,1753919449300,-460.79,0.00016984,2]
[376292657,1753919449309,-400.0,0.00016984,2]
[376292658,1753919449319,-400.0,0.00016984,2]
[376292659,1753919449329,-400.0,0.00016984,2]
[376292660,1753919449339,-400.0,0.00016984,2]
[376292661,1753919449348,-400.0,0.00016984,2]
[376292662,1753919449359,-1721.68,0.00016984,2]
[376292663,1753919449369,-400.0,0.00016984,2]
[376292664,1753919449379,-495.43,0.00016984,2]
[376292665,1753919449388,-400.0,0.00016984,2]
[376292666,1753919449398,-400.0,0.00016984,2]
[376292667,1753919449407,-400.0,0.00016984,2]
[376292668,1753919449416,-400.0,0.00016984,2]
[376292669,1753919449427,-400.0,0.00016984,2]
[376292670,1753919449436,-400.0,0.00016984,2]
[376292671,1753919449446,-400.0,0.00016984,2]
[376292672,1753919449455,-400.0,0.00016984,2]
[376292673,1753919449465,-400.0,0.00016984,2]
[376292674,1753919449474,-400.0,0.00016984,2]
[376292675,1753919449484,-428.93,0.00016984,2]
[376292676,1753919449494,-1138.68,0.00016984,2]
[376292677,1753919449503,-363.58861405,0.00016984,2]
[376292678,1753919449513,-889.48,0.00016984,2]
[376292679,1753919449523,-400.0,0.00016984,2]
[376292680,1753919449532,-400.0,0.00016984,2]
[376292681,1753919449542,-400.0,0.00016984,2]
[376292682,1753919449551,-400.0,0.00016984,2]
[376292683,1753919449561,-446.0,0.00016984,2]
[376292684,1753919449570,-400.0,0.00016984,2]
[376292685,1753919449580,-408.19015727,0.00016984,2]
[376292686,1753919449590,-400.0,0.00016984,2]
[376292687,1753919449600,-400.0,0.00016984,2]
[376292688,1753919449609,-400.0,0.00016984,2]
[376292689,1753919449619,-400.0,0.00016984,2]
[376292690,1753919449628,-1266.17,0.00016984,2]
[376292691,1753919449637,-400.0,0.00016984,2]
[376292692,1753919449647,-678.87,0.00016984,2]
[376292693,1753919449656,-400.0,0.00016984,2]
[376292694,1753919449666,-1373.32,0.00016984,2]
[376292695,1753919449675,-400.0,0.00016984,2]
[376292696,1753919449685,-400.0,0.00016984,2]
[376292697,1753919449694,-400.0,0.00016984,2]
[376292698,1753919449704,-962.28,0.00016984,2]
[376292699,1753919449713,-532.32,0.00016984,2]
[376292700,1753919449723,-400.0,0.00016984,2]
[376292701,1753919449733,-400.0,0.00016984,2]
[376292702,1753919449742,-400.0,0.00016984,2]
[376292703,1753919449751,-458.38,0.00016984,2]
[376292704,1753919449760,-1019.67,0.00016984,2]
[376292705,1753919449770,-400.0,0.00016984,2]
[376292706,1753919449779,-590.34,0.00016984,2]
[376292707,1753919449789,-400.0,0.00016984,2]
[376292708,1753919449799,-655.02,0.00016984,2]
[376292709,1753919449866,-318.14,0.00016984,2]
[376292710,1753919449876,-418.66,0.00016984,2]
[376292711,1753919449887,-584.7,0.00016984,2]
[376292712,1753919449896,-787.82,0.00016984,2]
[376292713,1753919449905,-400.0,0.00016984,2]
[376292714,1753919449914,-400.0,0.00016984,2]
[376292715,1753919449924,-1108.85,0.00016984,2]
[376292716,1753919449933,-400.0,0.00016984,2]
[376292717,1753919449942,-400.0,0.00016984,2]
[376292718,1753919449951,-417.18,0.00016984,2]
[376292719,1753919449961,-400.0,0.00016984,2]
[376292720,1753919449975,-400.0,0.00016984,2]
[376292721,1753919449986,-400.0,0.00016984,2]
[376292722,1753919449995,-1709.69,0.00016984,2]
[376292723,1753919450006,-400.0,0.00016984,2]
[376292724,1753919450018,-400.0,0.00016984,2]
[376292725,1753919450029,-400.0,0.00016984,2]
[376292726,1753919450041,-1392.81,0.00016984,2]
[376292727,1753919450051,-400.0,0.00016984,2]
[376292728,1753919450062,-660.23,0.00016984,2]
[376292729,1753919450079,-520.63,0.00016984,2]
[376292730,1753919450089,-400.0,0.00016984,2]
[376292731,1753919450099,-400.0,0.00016984,2]
[376292732,1753919450110,-607.92,0.00016984,2]
[376292733,1753919450120,-688.12,0.00016984,2]
[376292734,1753919450130,-400.0,0.00016984,2]
[376292735,1753919450142,-409.81,0.00016984,2]
[376292736,1753919450153,-932.16,0.00016984,2]
[376292737,1753919450163,-2412.33,0.00016984,2]
[376292738,1753919450172,-448.50807069,0.00016984,2]
[376292739,1753919450182,-941.83,0.00016984,2]
[376292740,1753919450191,-1325.46,0.00016984,2]
[376292741,1753919450201,-400.0,0.00016984,2]
[376292742,1753919450212,-951.02,0.00016984,2]
[376292743,1753919450222,-400.0,0.00016984,2]
[376292744,1753919450231,-1087.87,0.00016984,2]
[376292745,1753919450241,-400.0,0.00016984,2]
[376292746,1753919450252,-440.49,0.00016984,2]
[376292747,1753919450261,-413.0,0.00016984,2]
[376292748,1753919450270,-400.0,0.00016984,2]
[376292749,1753919450280,-400.0,0.00016984,2]
[376292750,1753919450289,-400.0,0.00016984,2]
[376292751,1753919450299,-400.0,0.00016984,2]
[376292752,1753919450314,-521.09,0.00016984,2]
[376292753,1753919450328,-400.0,0.00016984,2]
[376292754,1753919450337,-526.73,0.00016984,2]
[376292755,1753919450346,-692.82,0.00016984,2]
[376292756,1753919450355,-1391.63,0.00016984,2]
[376292757,1753919450364,-260.71,0.00016984,2]
[376292758,1753919450373,-400.0,0.00016984,2]
[376292759,1753919450383,-937.96,0.00016984,2]
[376292760,1753919450392,-533.18,0.00016984,2]
[376292761,1753919450401,-400.0,0.00016984,2]
[376292762,1753919450411,-400.0,0.00016984,2]
[376292763,1753919450420,-704.30979212,0.00016984,2]
[376292764,1753919450788,-328.42020788,0.00016984,2]
[376292765,1753919450797,-533.35,0.00016984,2]
[376292766,1753919450807,-481.34,0.00016984,2]
[376292767,1753919450816,-400.0,0.00016984,2]
[376292768,1753919450826,-400.0,0.00016984,2]
[376292769,1753919450835,-537.21123126,0.00016984,2]
[376292770,1753919450846,-60.59876874,0.00016984,2]
[376292771,1753919450855,-1101.14,0.00016984,2]
[376292772,1753919450864,-400.0,0.00016984,2]
[376292773,1753919450873,-400.0,0.00016984,2]
[376292774,1753919450882,-400.0,0.00016984,2]
[376292775,1753919450892,-515.69,0.00016984,2]
[376292776,1753919450901,-400.0,0.00016984,2]
[376292777,1753919450910,-400.0,0.00016984,2]
[376292778,1753919450919,-457.64,0.00016984,2]
[376292779,1753919450928,-578.45,0.00016984,2]
[376292780,1753919450937,-816.35,0.00016984,2]
[376292781,1753919450947,-213.27,0.00016984,2]
[376292782,1753919450956,-400.0,0.00016984,2]
[376292783,1753919450969,-400.0,0.00016984,2]
[376292784,1753919450978,-400.0,0.00016984,2]
[376292785,1753919450987,-400.0,0.00016984,2]
[376292786,1753919450996,-400.0,0.00016984,2]
[376292787,1753919451006,-400.0,0.00016984,2]
[376292788,1753919451015,-1417.16,0.00016984,2]
[376292789,1753919451024,-178.82252933,0.00016984,2]
[376292790,1753919451036,-221.17747067,0.00016984,2]
[376292791,1753919451046,-800.14,0.00016984,2]
[376292792,1753919451056,-428.82,0.00016984,2]
[376292793,1753919451066,-416.14,0.00016984,2]
[376292794,1753919451075,-400.0,0.00016984,2]
[376292795,1753919451084,-403.88294038,0.00016984,2]
[376292796,1753919451093,-1101.1,0.00016984,2]
[376292797,1753919451103,-413.77,0.00016984,2]
[376292798,1753919451112,-400.0,0.00016984,2]
[376292799,1753919451122,-464.28069812,0.00016984,2]
[376292800,1753919451131,-1037.65,0.00016984,2]
[376292801,1753919451140,-218.12615009,0.00016984,2]
[376292802,1753919451152,-181.87384991,0.00016984,2]
[376292803,1753919451161,-403.29195768,0.00016984,2]
[376292804,1753919451171,-400.0,0.00016984,2]
[376292805,1753919451180,-400.0,0.00016984,2]
[376292806,1753919451189,-165.64498741,0.00016984,2]
[376292807,1753919451220,-234.35501259,0.00016984,2]
[376292808,1753919451229,-1293.34,0.00016984,2]
[376292809,1753919451239,-400.0,0.00016984,2]
[376292810,1753919451248,-586.03,0.00016984,2]
[376292811,1753919451258,-400.0,0.00016984,2]
[376292812,1753919451268,-400.0,0.00016984,2]
[376292813,1753919451277,-400.0,0.00016984,2]
[376292814,1753919451286,-368.37821398,0.00016984,2]
[376292815,1753919451295,-400.0,0.00016984,2]
[376292816,1753919451305,-966.37,0.00016984,2]
[376292817,1753919451314,-411.29,0.00016984,2]
[376292818,1753919451323,-11646.06,0.00016984,2]
[376292819,1753919451332,-400.0,0.00016984,2]
[376292820,1753919451341,-393.592,0.00016984,2]
[376292821,1753919451350,-520.33,0.00016984,2]
[376292822,1753919451359,-400.0,0.00016984,2]
[376292823,1753919451368,-418.26,0.00016984,2]
[376292824,1753919451377,-1213.11,0.00016984,2]
[376292825,1753919451386,-1163.8,0.00016984,2]
[376292826,1753919451396,-168.62,0.00016984,2]
[376292827,1753919451405,-400.0,0.00016984,2]
[376292828,1753919451414,-400.0,0.00016984,2]
[376292829,1753919451423,-1461.58,0.00016984,2]
[376292830,1753919451433,-963.49,0.00016984,2]
[376292831,1753919451443,-1718.0,0.00016984,2]
[376292832,1753919451452,-400.0,0.00016984,2]
[376292833,1753919451463,-1763.63,0.00016984,2]
[376292834,1753919451472,-400.0,0.00016984,2]
[376292835,1753919451482,-400.0,0.00016984,2]
[376292836,1753919451491,-787.63,0.00016984,2]
[376292837,1753919451502,-400.0,0.00016984,2]
[376292838,1753919451512,-1088.45,0.00016984,2]
[376292839,1753919451522,-400.0,0.00016984,2]
[376292840,1753919451531,-400.0,0.00016984,2]
[376292841,1753919451540,-611.51,0.00016984,2]
[376292842,1753919451550,-937.86,0.00016984,2]
[376292843,1753919451559,-1432.9,0.00016984,2]
[376292844,1753919451568,-400.0,0.00016984,2]
[376292845,1753919451577,-400.0,0.00016984,2]
[376292846,1753919451586,-400.0,0.00016984,2]
[376292847,1753919451595,-400.0,0.00016984,2]
[376292848,1753919451605,-403.91,0.00016984,2]
[376292849,1753919451614,-400.0,0.00016984,2]
[376292850,1753919451623,-2668.91,0.00016984,2]
[376292851,1753919451632,-1192.7,0.00016984,2]
[376292852,1753919451641,-400.0,0.00016984,2]
[376292853,1753919451651,-400.0,0.00016984,2]
[376292854,1753919451661,-400.0,0.00016984,2]
[376292855,1753919451670,-400.0,0.00016984,2]
[376292856,1753919451680,-400.0,0.00016984,2]
[376292857,1753919451690,-734.38,0.00016984,2]
[376292858,1753919451700,-793.86,0.00016984,2]
[376292859,1753919451710,-400.0,0.00016984,2]
[376292860,1753919451719,-32.82166772,0.00016984,2]
[376292861,1753919451733,-367.17833228,0.00016984,2]
[376292862,1753919451742,-1121.24,0.00016984,2]
[376292863,1753919451753,-159.549627,0.00016984,2]
[376292864,1753919451763,-402.08,0.00016984,2]
[376292865,1753919451773,-400.0,0.00016984,2]
[376292866,1753919451782,-1531.75,0.00016984,2]
[376292867,1753919451793,-648.16,0.00016984,2]
[376292868,1753919451803,-627.84,0.00016986,2]
[376292869,1753919451815,-534.62,0.00016986,2]
[376292870,1753919451825,-400.0,0.00016986,2]
[376292871,1753919451834,-450.47,0.00016986,2]
[376292872,1753919451844,-949.81,0.00016986,2]
[376292873,1753919451854,-1013.78,0.00016986,2]
[376292874,1753919451865,-449.08,0.00016986,2]
[376292875,1753919451874,-683.48,0.00016986,2]
[376292876,1753919451883,-577.58,0.00016986,2]
[376292877,1753919451892,-400.0,0.00016986,2]
[376292878,1753919451901,-400.0,0.00016986,2]
[376292879,1753919451911,-513.7,0.00016986,2]
[376292880,1753919451920,-400.0,0.00016986,2]
[376292881,1753919451929,-575.47,0.00016986,2]
[376292882,1753919451938,-400.0,0.00016986,2]
[376292883,1753919451947,-400.0,0.00016986,2]
[376292884,1753919451956,-400.0,0.00016986,2]
[376292885,1753919451968,-400.0,0.00016986,2]
[376292886,1753919451977,-521.24,0.00016986,2]
[376292887,1753919451986,-1173.22,0.00016986,2]
[376292888,1753919451996,-400.0,0.00016986,2]
[376292889,1753919452005,-2791.6,0.00016986,2]
[376292890,1753919452014,-725.55,0.00016986,2]
[376292891,1753919452024,-664.62,0.00016986,2]
[376292892,1753919452034,-698.46,0.00016986,2]
[376292893,1753919452043,-820.0,0.00016986,2]
[376292894,1753919452053,-1629.52204072,0.00016986,2]
[376292895,1753919452647,-368.77599679,0.00016709,3]
[376292896,1753919453348,-819.69885936,0.00016709,3]
[376292897,1753919453453,-583.60858051,0.00016709,3]
[376292903,1753919717941,983.13789118,0.00015068,2]
[376292904,1753919717963,1578.06210882,0.00015068,2]
[376292906,1753919778771,200.0,0.00027297,120]
[376292907,1753919803404,165.16,0.00015493,2]
[376292909,1753919819810,195.43,0.00013699,2]
[376292910,1753919870720,154.96,0.00015493,2]
[376292911,1753919948104,1056.15,0.00021945,30]